bitfinex-derivatives/quotes_SOLF0:USTF0_20250623
["timestamp","ask_amount","ask_price","bid_price","bid_amount"]
[1750719778609,6.29995394,144.63,144.53,759.91143762]
[1750719778610,6.29995394,144.59,144.51,8.51143762]
[1750719778807,6.29995394,144.63,144.49,12.76715643]
[1750719778808,6.29995394,144.57,144.49,210.99143762]
[1750719779007,6.29995394,144.57,144.49,202.48]
[1750719779707,6.29995394,144.57,144.49,47.64]
[1750719780015,6.29995394,144.51,144.45,47.64]
[1750719780216,6.29995394,144.51,144.42,208.73995394]
[1750719780513,6.29995394,144.55,144.44,8.52615394]
[1750719780709,47.64,144.56,144.48,6.29995394]
[1750719780916,6.29995394,144.59,144.5,6.29995394]
[1750719781110,6.29995394,144.6,144.51,2.2262]
[1750719781412,47.64,144.61,144.52,6.29995394]
[1750719781608,47.64,144.61,144.58,6.9113]
[1750719782303,6.29995394,144.64,144.59,6.9108]
[1750719782304,13.20855394,144.64,144.59,6.9108]
[1750719782707,644.24,144.65,144.56,6.29995394]
[1750719783013,644.24,144.65,144.57,4.5205]
[1750719783410,651.1482,144.65,144.6,6.91]
[1750719783914,6.9086,144.64,144.58,2.2887]
[1750719784107,644.24,144.65,144.58,2.2887]
[1750719784305,6.9087,144.64,144.58,2.2887]
[1750719784504,6.29995394,144.64,144.58,2.2887]
[1750719784712,6.29995394,144.62,144.56,154.78]
[1750719784912,6.29995394,144.64,144.59,6.9106]
[1750719785314,6.29995394,144.64,144.56,154.78]
[1750719785515,6.9093,144.63,144.58,6.9112]
[1750719785713,6.29995394,144.64,144.56,154.78]
[1750719785914,13.20855394,144.64,144.56,154.78]
[1750719786712,6.9091,144.63,144.56,154.78]
[1750719786908,6.29995394,144.64,144.56,154.78]
[1750719787112,646.4561,144.65,144.57,6.29995394]
[1750719787313,6.909,144.63,144.56,161.07995394]
[1750719787820,644.24,144.65,144.58,6.29995394]
[1750719788119,47.64,144.65,144.58,6.29995394]
[1750719788318,54.5482,144.65,144.6,6.9101]
[1750719788520,54.5482,144.65,144.58,6.29995394]
[1750719788521,47.64,144.65,144.58,6.29995394]
[1750719788916,53.93995394,144.65,144.56,161.07995394]
[1750719789117,53.93995394,144.65,144.56,154.78]
[1750719789817,6.9094,144.63,144.58,6.911]
[1750719790011,6.9094,144.63,144.56,154.78]
[1750719790412,6.9085,144.64,144.59,6.9108]
[1750719790616,47.64,144.65,144.57,6.29995394]
[1750719790825,6.9091,144.63,144.58,6.9112]
[1750719791028,47.64,144.65,144.57,6.29995394]
[1750719791919,53.93995394,144.65,144.56,154.78]
[1750719792225,47.64,144.65,144.56,154.78]
[1750719792427,6.9094,144.63,144.58,6.9111]
[1750719792626,53.93995394,144.65,144.56,154.78]
[1750719792821,6.91,144.61,144.56,154.78]
[1750719793019,53.93995394,144.65,144.56,154.78]
[1750719793521,6.29995394,144.61,144.53,6.7941]
[1750719794627,6.9119,144.57,144.53,6.7941]
[1750719794825,6.29995394,144.59,144.53,6.7941]
[1750719795020,6.9132,144.55,144.53,4.5719]
[1750719795323,6.9132,144.55,144.51,6.9146]
[1750719795521,47.64,144.58,144.5,47.64]
[1750719795825,47.64,144.58,144.5,53.93995394]
[1750719796129,6.29995394,144.61,144.52,6.29995394]
[1750719796722,650.89995394,144.63,144.54,6.29995394]
[1750719796931,650.89995394,144.63,144.54,53.93995394]
[1750719797118,650.89995394,144.63,144.56,6.9122]
[1750719797526,650.89995394,144.63,144.55,2.2089]
[1750719797825,650.89995394,144.63,144.56,4.7389]
[1750719798323,6.9102,144.61,144.56,11.6509]
[1750719798829,6.9102,144.61,144.57,6.9118]
[1750719799125,6.9102,144.61,144.56,4.7389]
[1750719799330,6.9102,144.61,144.56,11.03885394]
[1750719799524,6.9102,144.61,144.57,6.9116]
[1750719799722,6.9097,144.62,144.56,11.03885394]
[1750719799925,2.2995,144.66,144.56,11.03885394]
[1750719799926,47.66,144.66,144.58,6.29995394]
[1750719800422,6.9089,144.64,144.58,6.29995394]
[1750719800628,47.66,144.66,144.6,6.29995394]
[1750719801725,168.1267,144.75,144.58,47.66]
[1750719801726,597.02,144.77,144.58,47.66]
[1750719801917,6.29995394,144.73,144.64,6.29995394]
[1750719802117,6.29962026,144.72,144.63,6.29962026]
[1750719802522,6.29962026,144.72,144.63,6.9086]
[1750719802920,6.29962026,144.71,144.62,53.41962026]
[1750719803227,6.29962026,144.73,144.64,6.29962026]
[1750719803427,6.9065,144.69,144.65,6.908]
[1750719803630,6.29962026,144.71,144.63,6.8036]
[1750719803827,6.29962026,144.73,144.64,6.29962026]
[1750719804228,47.12,144.74,144.64,6.29962026]
[1750719804229,6.906,144.7,144.64,6.29962026]
[1750719804729,6.29962026,144.73,144.67,6.907]
[1750719805118,47.12,144.74,144.66,6.29962026]
[1750719805729,47.12,144.74,144.68,6.29962026]
[1750719806633,6.29962026,144.77,144.68,6.29962026]
[1750719806819,6.9036,144.75,144.7,6.9054]
[1750719807224,47.1,144.78,144.7,6.29962026]
[1750719807424,47.1,144.78,144.72,6.9043]
[1750719807630,47.1,144.78,144.7,58.05022026]
[1750719807825,6.903,144.76,144.71,6.9051]
[1750719808134,47.1,144.78,144.7,58.05022026]
[1750719808324,54.0022,144.78,144.73,6.9038]
[1750719808630,6.9022,144.78,144.72,6.29962026]
[1750719809024,6.9014,144.79,144.72,6.29962026]
[1750719809223,47.1,144.82,144.74,6.29962026]
[1750719809424,47.1,144.82,144.74,53.39962026]
[1750719809622,6.9013,144.8,144.74,53.39962026]
[1750719809930,47.1,144.82,144.74,53.39962026]
[1750719810330,47.1,144.82,144.75,2.2183]
[1750719810637,6.8998,144.83,144.78,6.9016]
[1750719812333,6.8999,144.82,144.78,6.9016]
[1750719812534,10.81732026,144.85,144.78,6.9016]
[1750719812736,10.81732026,144.85,144.77,6.9021]
[1750719813230,6.9003,144.82,144.77,6.9021]
[1750719813531,6.9003,144.82,144.78,6.9018]
[1750719814540,10.81732026,144.85,144.75,2.2183]
[1750719814845,6.29962026,144.83,144.75,2.2183]
[1750719815031,6.29962026,144.81,144.75,2.2183]
[1750719815228,6.29962026,144.81,144.74,53.39962026]
[1750719815538,6.29962026,144.81,144.74,47.1]
[1750719816037,6.29962026,144.79,144.74,47.1]
[1750719816539,6.29962026,144.79,144.71,2.3571]
[1750719816942,6.29962026,144.77,144.71,2.3571]
[1750719817240,6.29962026,144.77,144.7,4.6506]
[1750719817545,6.29962026,144.77,144.66,2.3571]
[1750719817546,6.29962026,144.73,144.66,2.3571]
[1750719818530,6.906,144.7,144.66,6.9074]
[1750719818936,53.37962026,144.73,144.65,51.5456]
[1750719819141,6.29962026,144.71,144.65,51.5456]
[1750719819537,6.29962026,144.71,144.63,6.29962026]
[1750719819538,6.9074,144.67,144.63,6.9088]
[1750719819742,47.08,144.73,144.61,47.08]
[1750719819743,6.29962026,144.69,144.61,47.08]
[1750719820142,6.29962026,144.69,144.62,6.9093]
[1750719820551,53.37962026,144.69,144.62,6.9093]
[1750719820851,53.37962026,144.69,144.61,47.08]
[1750719821542,6.30165636,144.72,144.61,47.08]
[1750719821849,47.08,144.73,144.65,6.30165636]
[1750719822045,2.2033,144.75,144.67,6.30165636]
[1750719822245,57.86185636,144.76,144.67,6.30165636]
[1750719822448,57.86185636,144.76,144.68,4.667]
[1750719822646,6.9045,144.73,144.69,6.9058]
[1750719824050,6.9045,144.73,144.68,11.5735]
[1750719824352,6.9045,144.73,144.68,4.667]
[1750719824543,6.9039,144.74,144.69,6.906]
[1750719824851,51.5602,144.76,144.68,4.667]
[1750719825151,6.9045,144.73,144.68,11.5735]
[1750719825350,57.86185636,144.76,144.68,4.667]
[1750719825539,6.905,144.72,144.68,4.667]
[1750719826342,57.86185636,144.76,144.68,4.667]
[1750719826957,6.9041,144.74,144.7,6.9055]
[1750719827150,57.86185636,144.76,144.68,4.667]
[1750719827551,57.86185636,144.76,144.7,6.9053]
[1750719827855,57.86185636,144.76,144.68,4.667]
[1750719828050,6.9034,144.75,144.71,6.9051]
[1750719828246,47.08,144.76,144.69,53.38165636]
[1750719828447,49.3869,144.8,144.69,53.38165636]
[1750719828648,6.902,144.78,144.71,6.30165636]
[1750719829147,6.9015,144.79,144.74,6.9037]
[1750719829451,47.08,144.8,144.73,6.30165636]
[1750719829751,53.9812,144.8,144.75,6.9032]
[1750719830254,47.08,144.8,144.76,6.9025]
[1750719830554,47.08,144.8,144.75,6.30165636]
[1750719830755,2.2793,144.86,144.77,6.30165636]
[1750719830756,6.30165636,144.85,144.77,6.30165636]
[1750719830948,49.3593,144.86,144.77,6.30165636]
[1750719831250,6.8993,144.84,144.79,6.901]
[1750719832060,49.3593,144.86,144.8,6.9008]
[1750719832357,49.3593,144.86,144.77,52.82165636]
[1750719832657,6.899,144.84,144.79,6.901]
[1750719832859,6.899,144.84,144.77,52.82165636]
[1750719833060,6.8998,144.83,144.77,52.82165636]
[1750719833460,6.8998,144.83,144.79,6.9013]
[1750719833660,6.8998,144.83,144.77,46.52]
[1750719833956,6.30165636,144.83,144.77,46.52]
[1750719834152,6.30165636,144.81,144.75,2.4194]
[1750719834347,6.30165636,144.81,144.74,2.2251]
[1750719834552,6.30165636,144.81,144.76,6.9027]
[1750719835050,6.9017,144.79,144.75,6.903]
[1750719835250,6.9017,144.79,144.74,2.2251]
[1750719835961,6.30165636,144.8,144.71,2.2593]
[1750719836164,46.5,144.82,144.71,55.06095636]
[1750719836352,6.30165636,144.8,144.71,55.06095636]
[1750719836860,6.30165636,144.8,144.74,6.9034]
[1750719836861,6.9021,144.78,144.74,6.9034]
[1750719837359,6.9025,144.77,144.73,6.9041]
[1750719837559,6.9025,144.77,144.71,55.06095636]
[1750719837761,6.30165636,144.8,144.71,55.06095636]
[1750719837962,6.30165636,144.81,144.71,55.06095636]
[1750719838360,6.9021,144.78,144.74,6.9035]
[1750719839158,6.30165636,144.81,144.75,6.903]
[1750719839764,46.5,144.82,144.74,6.30165636]
[1750719840765,6.9026,144.77,144.71,55.06095636]
[1750719840958,6.30165636,144.81,144.71,55.06095636]
[1750719841263,50.9541,144.82,144.71,55.06095636]
[1750719841264,6.30165636,144.79,144.71,55.06095636]
[1750719841464,50.9541,144.82,144.67,649.32165636]
[1750719841465,6.30165636,144.77,144.67,649.32165636]
[1750719841867,6.30165636,144.75,144.67,649.32165636]
[1750719842171,6.30165636,144.74,144.67,46.5]
[1750719842363,6.905,144.72,144.68,6.9063]
[1750719842564,6.30165636,144.74,144.67,46.5]
[1750719842767,6.30165636,144.72,144.64,6.9083]
[1750719843067,6.30165636,144.72,144.63,52.80165636]
[1750719843362,6.30165636,144.72,144.65,6.9079]
[1750719843564,6.30165636,144.72,144.63,52.80165636]
[1750719843966,6.9066,144.68,144.65,6.9079]
[1750719844168,6.30165636,144.72,144.65,6.9079]
[1750719844462,6.30165636,144.72,144.66,6.9075]
[1750719844857,6.30165636,144.72,144.63,46.5]
[1750719845659,6.9066,144.68,144.63,46.5]
[1750719846263,6.9066,144.68,144.64,6.9083]
[1750719846561,6.30165636,144.72,144.63,46.5]
[1750719846861,46.52,144.7,144.63,46.5]
[1750719847565,6.9074,144.67,144.63,46.5]
[1750719847967,46.52,144.7,144.63,46.5]
[1750719849167,6.907,144.68,144.63,46.5]
[1750719850266,6.30165636,144.64,144.61,8.51510717]
[1750719850564,46.52,144.66,144.56,8.51510717]
[1750719850870,46.52,144.66,144.57,6.30165636]
[1750719850871,52.82165636,144.66,144.57,6.30165636]
[1750719851571,6.30165636,144.64,144.55,13.28925636]
[1750719852072,46.52,144.66,144.55,6.9876]
[1750719852073,6.30165636,144.62,144.55,6.9876]
[1750719852370,52.82165636,144.62,144.54,46.52]
[1750719852761,52.82165636,144.62,144.54,53.4331]
[1750719852762,6.9117,144.58,144.54,53.4331]
[1750719852970,52.82165636,144.62,144.54,46.52]
[1750719853974,6.9107,144.6,144.54,46.52]
[1750719854175,6.9107,144.6,144.5,161.23510717]
[1750719854176,6.30165636,144.55,144.48,8.51510717]
[1750719854468,6.30165636,144.55,144.47,2.3194]
[1750719855871,6.9138,144.53,144.49,6.9155]
[1750719856063,6.30165636,144.55,144.47,2.3194]
[1750719857061,6.9141,144.53,144.47,2.3194]
[1750719857466,6.9146,144.52,144.47,9.2357]
[1750719857679,6.31532413,144.52,144.46,51.073]
[1750719857859,6.31532413,144.5,144.42,55.27792413]
[1750719858062,6.31532413,144.51,144.42,59.88032413]
[1750719858773,6.9153,144.5,144.45,6.9173]
[1750719859277,6.31532413,144.51,144.42,59.88032413]
[1750719859473,6.9152,144.5,144.42,59.88032413]
[1750719859679,6.31532413,144.51,144.42,59.88032413]
[1750719860270,6.31532413,144.51,144.44,6.918]
[1750719860671,6.9161,144.49,144.44,6.918]
[1750719860975,6.31532413,144.51,144.42,13.34032413]
[1750719861172,46.54,144.53,144.42,13.34032413]
[1750719861364,6.31773755,144.52,144.42,13.34273755]
[1750719862271,6.916,144.49,144.44,6.9178]
[1750719862470,6.916,144.49,144.42,13.34273755]
[1750719863072,6.31773755,144.5,144.42,7.025]
[1750719863268,6.31773755,144.51,144.42,7.025]
[1750719863468,52.85773755,144.53,144.47,6.9166]
[1750719863877,6.9148,144.51,144.43,6.31773755]
[1750719864170,6.9148,144.51,144.46,6.9168]
[1750719864684,6.9152,144.5,144.46,6.9168]
[1750719864977,6.31773755,144.49,144.42,7.025]
[1750719865368,52.35773755,144.49,144.42,13.9437]
[1750719865569,6.9172,144.46,144.42,13.9437]
[1750719865974,52.35773755,144.49,144.42,13.9437]
[1750719866372,6.31773755,144.47,144.38,6.31773755]
[1750719866573,6.31773755,144.47,144.38,52.35773755]
[1750719866774,6.9184,144.44,144.38,46.04]
[1750719867072,6.31773755,144.45,144.38,46.04]
[1750719867268,6.9199,144.41,144.35,6.9973]
[1750719867573,6.31773755,144.41,144.35,13.9196]
[1750719867876,6.31773755,144.41,144.35,6.9973]
[1750719867877,6.9208,144.39,144.35,6.9973]
[1750719868281,46.04,144.41,144.3,6.31773755]
[1750719868486,59.27643755,144.43,144.38,6.9207]
[1750719868680,6.31773755,144.43,144.34,6.31773755]
[1750719868985,52.37773755,144.43,144.38,6.9206]
[1750719869576,6.9193,144.42,144.38,6.9206]
[1750719869890,54.69263755,144.44,144.35,2.3091]
[1750719871385,6.9191,144.42,144.37,6.9212]
[1750719871591,4.6611,144.48,144.37,46.06]
[1750719871783,6.9184,144.44,144.38,11.08253755]
[1750719871995,46.06,144.47,144.38,11.08253755]
[1750719872781,6.31773755,144.46,144.38,4.7648]
[1750719873183,46.06,144.47,144.38,2.4132]
[1750719873390,6.31773755,144.44,144.38,2.4132]
[1750719873781,6.31773755,144.44,144.37,52.9811]
[1750719874183,6.9195,144.42,144.37,52.9811]
[1750719874384,6.31773755,144.44,144.37,52.9811]
[1750719874584,46.06,144.43,144.37,52.9811]
[1750719874786,6.31773755,144.42,144.35,2.3091]
[1750719874987,6.31773755,144.4,144.34,2.2014]
[1750719875290,6.9213,144.38,144.34,6.9227]
[1750719875492,6.31773755,144.4,144.33,46.06]
[1750719875686,6.31773755,144.4,144.33,52.9832]
[1750719875889,6.9215,144.37,144.33,52.9832]
[1750719876091,46.06,144.39,144.31,2.2205]
[1750719876292,6.31773755,144.38,144.32,6.9235]
[1750719876487,6.9223,144.36,144.31,2.2205]
[1750719877080,6.31773755,144.38,144.34,6.9228]
[1750719877386,46.06,144.39,144.32,6.31773755]
[1750719877995,52.9806,144.39,144.34,6.9226]
[1750719878296,46.06,144.39,144.32,6.31773755]
[1750719878595,52.37773755,144.39,144.31,2.2205]
[1750719879097,6.9225,144.35,144.31,9.1445]
[1750719879292,52.37773755,144.39,144.31,2.2205]
[1750719879795,52.37773755,144.39,144.31,9.1447]
[1750719879995,52.37773755,144.39,144.31,2.2205]
[1750719880195,6.9229,144.35,144.31,2.2205]
[1750719880993,6.9229,144.34,144.31,2.2205]
[1750719881197,6.31773755,144.37,144.31,2.2205]
[1750719881589,6.9238,144.32,144.31,2.2205]
[1750719881900,6.9238,144.32,144.29,46.06]
[1750719882397,6.9235,144.33,144.29,46.06]
[1750719882596,6.31773755,144.37,144.29,46.06]
[1750719882787,4.7015,144.38,144.29,52.37773755]
[1750719882989,52.39773755,144.37,144.29,46.06]
[1750719883293,52.39773755,144.37,144.3,6.9247]
[1750719883500,6.9224,144.35,144.29,46.06]
[1750719883894,6.9224,144.35,144.31,6.9241]
[1750719884599,6.31773755,144.41,144.31,6.31773755]
[1750719884796,600.1293,144.43,144.33,6.31773755]
[1750719884998,6.9205,144.39,144.35,6.9222]
[1750719885194,52.39773755,144.42,144.33,6.31773755]
[1750719885594,52.39773755,144.42,144.34,2.3161]
[1750719885902,52.39773755,144.42,144.34,8.63383755]
[1750719886098,6.9201,144.4,144.37,6.9214]
[1750719886302,46.08,144.45,144.38,6.31773755]
[1750719886896,46.08,144.45,144.4,6.31773755]
[1750719887200,46.08,144.45,144.37,46.08]
[1750719887389,46.08,144.45,144.38,6.31773755]
[1750719887901,6.9182,144.44,144.38,6.31773755]
[1750719888104,46.08,144.45,144.37,108.08]
[1750719888303,46.08,144.45,144.39,6.31773755]
[1750719889006,6.9184,144.44,144.4,6.9195]
[1750719889206,46.08,144.45,144.39,6.31773755]
[1750719889505,46.08,144.45,144.38,6.31773755]
[1750719890202,6.9193,144.42,144.38,13.23843755]
[1750719890902,6.9198,144.41,144.37,6.9214]
[1750719891104,52.39773755,144.45,144.36,52.39773755]
[1750719891499,6.9202,144.4,144.36,59.31933755]
[1750719892202,6.9207,144.39,144.36,52.39773755]
[1750719893004,6.9207,144.39,144.36,6.31773755]
[1750719893204,6.9207,144.39,144.35,161.2838]
[1750719893505,6.9202,144.4,144.36,6.9218]
[1750719893706,6.31773755,144.43,144.36,6.9218]
[1750719894001,52.39773755,144.45,144.35,160.67913755]
[1750719894207,52.39773755,144.45,144.37,27.74]
[1750719894601,46.08,144.45,144.37,27.74]
[1750719894811,6.31773755,144.44,144.37,27.74]
[1750719895103,6.31773755,144.44,144.37,34.6614]
[1750719895508,52.39773755,144.45,144.37,34.6614]
[1750719895707,52.39773755,144.45,144.38,6.9209]
[1750719896809,6.9198,144.41,144.38,6.9209]
[1750719897011,52.39773755,144.45,144.37,34.6613]
[1750719897714,6.92,144.4,144.37,34.6613]
[1750719898308,6.9203,144.4,144.37,27.74]
[1750719898509,52.39773755,144.45,144.37,27.74]
[1750719899410,6.31773755,144.38,144.37,12.9894]
[1750719899607,51.89773755,144.38,144.29,6.39981272]
[1750719899799,51.89773755,144.38,144.32,6.9235]
[1750719900112,51.89773755,144.38,144.3,6.39981272]
[1750719900412,51.89773755,144.38,144.29,6.9251]
[1750719900606,6.904,144.44,144.32,6.31773755]
[1750719900910,13.8319,144.49,144.38,6.9206]
[1750719900911,51.89773755,144.45,144.38,6.9206]
[1750719901214,51.89773755,144.45,144.37,2.4322]
[1750719901412,6.31773755,144.43,144.37,2.4322]
[1750719901613,51.89773755,144.45,144.37,2.4322]
[1750719901809,45.58,144.45,144.38,6.31773755]
[1750719902504,45.58,144.45,144.41,6.9191]
[1750719902905,52.4978,144.45,144.38,6.39981272]
[1750719903115,45.58,144.48,144.4,6.31773755]
[1750719903410,45.58,144.48,144.38,12.71755027]
[1750719903612,45.58,144.48,144.41,34.62]
[1750719904008,6.31773755,144.47,144.41,34.62]
[1750719904203,6.31773755,144.45,144.41,34.62]
[1750719904605,6.919,144.42,144.41,34.62]
[1750719905205,6.31773755,144.47,144.41,34.62]
[1750719905714,6.9182,144.44,144.41,34.62]
[1750719906309,6.9178,144.45,144.41,34.62]
[1750719906711,45.58,144.48,144.43,6.9185]
[1750719907015,45.58,144.48,144.41,40.93773755]
[1750719907217,45.58,144.48,144.42,2.3644]
[1750719907408,45.58,144.48,144.41,34.62]
[1750719907607,6.31773755,144.43,144.41,34.62]
[1750719907812,6.919,144.42,144.41,34.62]
[1750719908216,45.58,144.43,144.41,34.62]
[1750719908511,51.89773755,144.46,144.41,34.62]
[1750719909920,6.919,144.42,144.41,34.62]
[1750719916125,52.499,144.42,144.41,34.62]
[1750719919718,611.751,144.5,144.41,34.62]
[1750719919926,6.31773755,144.46,144.42,6.39981272]
[1750719920125,6.31773755,144.46,144.41,41.01981272]
[1750719920322,45.58,144.45,144.41,41.01981272]
[1750719921025,6.9183,144.44,144.41,41.01981272]
[1750719921223,45.58,144.45,144.41,41.01981272]
[1750719924143,45.58,144.45,144.42,6.39981272]
[1750719924734,48.76770089,144.47,144.43,6.39981272]
[1750719924931,3.68770089,144.49,144.44,6.39981272]
[1750719925136,6.9165,144.48,144.44,6.39981272]
[1750719925434,643.0,144.5,144.44,6.39981272]
[1750719925633,6.9165,144.48,144.44,13.31771272]
[1750719925834,6.9165,144.48,144.45,6.39981272]
[1750719927036,6.9166,144.47,144.45,6.39981272]
[1750719927235,597.92,144.5,144.45,6.39981272]
[1750719927432,6.917,144.47,144.45,6.39981272]
[1750719928929,6.9171,144.46,144.45,1.272e-05]
[1750719929130,6.31825395,144.47,144.41,34.62]
[1750719929329,6.31825395,144.46,144.41,34.62]
[1750719929635,6.31825395,144.46,144.41,43.02412286]
[1750719930140,6.9183,144.44,144.42,8.40412286]
[1750719930331,6.9183,144.44,144.41,49.94332286]
[1750719931137,6.31825395,144.46,144.41,43.02412286]
[1750719931534,6.31825395,144.46,144.41,8.40412286]
[1750719931839,6.919,144.43,144.41,8.40412286]
[1750719932134,6.31825395,144.46,144.41,8.40412286]
[1750719932433,6.31825395,144.46,144.4,8.40412286]
[1750719932834,45.08,144.49,144.4,8.40412286]
[1750719933040,6.31825395,144.45,144.4,8.40412286]
[1750719933439,6.9189,144.43,144.4,8.40412286]
[1750719934035,6.9189,144.43,144.4,15.32402286]
[1750719934346,6.9183,144.44,144.41,8.40412286]
[1750719934535,6.31825395,144.49,144.42,8.40412286]
[1750719934738,6.9179,144.45,144.42,8.40412286]
[1750719935044,6.9179,144.45,144.42,15.32312286]
[1750719935339,6.9182,144.44,144.42,8.40412286]
[1750719935533,6.31825395,144.47,144.41,8.40412286]
[1750719935729,45.06,144.46,144.41,8.40412286]
[1750719935940,6.31825395,144.45,144.4,8.40412286]
[1750719936644,6.9192,144.42,144.4,8.40412286]
[1750719936846,6.9192,144.42,144.39,15.32422286]
[1750719937239,6.31825395,144.45,144.39,8.40412286]
[1750719938048,6.31825395,144.44,144.39,8.40412286]
[1750719938848,6.9198,144.41,144.39,8.40412286]
[1750719940548,6.92,144.4,144.39,8.40412286]
[1750719941050,6.92,144.4,144.38,12.86652286]
[1750719941249,6.9205,144.39,144.38,12.86652286]
[1750719941749,6.9209,144.38,144.37,42.11]
[1750719944543,45.08,144.4,144.37,42.11]
[1750719944746,6.31825395,144.43,144.37,42.11]
[1750719944949,45.08,144.42,144.37,42.11]
[1750719945153,6.31825395,144.43,144.37,42.11]
[1750719945349,45.08,144.42,144.37,42.11]
[1750719945540,45.08,144.46,144.38,14.72237681]
[1750719945746,45.08,144.46,144.4,14.72237681]
[1750719945943,45.08,144.46,144.41,8.40412286]
[1750719946250,45.08,144.49,144.42,6.31825395]
[1750719946852,6.9178,144.45,144.41,8.40412286]
[1750719947053,45.08,144.49,144.41,8.40412286]
[1750719947440,6.9169,144.47,144.42,6.31825395]
[1750719947942,6.9169,144.47,144.43,6.9183]
[1750719948144,6.9171,144.46,144.42,14.72237681]
[1750719948344,6.9171,144.46,144.42,21.64107681]
[1750719948545,45.08,144.49,144.42,21.64107681]
[1750719949245,6.9174,144.46,144.42,21.64107681]
[1750719950453,6.9174,144.46,144.43,6.9185]
[1750719950649,6.9168,144.47,144.43,8.40412286]
[1750719951054,45.08,144.49,144.45,6.9174]
[1750719951352,45.08,144.49,144.43,8.40412286]
[1750719951353,6.9164,144.48,144.43,8.40412286]
[1750719951856,6.9164,144.48,144.44,6.9178]
[1750719952548,6.9164,144.48,144.45,6.9175]
[1750719952854,6.9164,144.48,144.44,8.40412286]
[1750719953147,6.9164,144.48,144.44,10.63882286]
[1750719953853,50.85825395,144.52,144.45,6.9172]
[1750719954257,3.68510417,144.51,144.45,6.9172]
[1750719954749,3.68510417,144.55,144.44,5.91980417]
[1750719954952,6.915,144.51,144.46,3.68510417]
[1750719955152,6.915,144.51,144.47,4.6918]
[1750719955459,6.915,144.51,144.47,11.608]
[1750719956556,6.915,144.51,144.48,6.9161]
[1750719958262,6.915,144.51,144.47,11.6082]
[1750719958462,3.68510417,144.51,144.47,4.6918]
[1750719958663,3.68510417,144.51,144.44,55.17882286]
[1750719958860,44.54,144.53,144.44,55.17882286]
[1750719958861,3.68510417,144.52,144.45,3.68510417]
[1750719959064,48.22510417,144.53,144.45,12.08922703]
[1750719959462,6.915,144.51,144.47,6.9163]
[1750719959857,6.915,144.51,144.45,12.08922703]
[1750719960566,6.84743244,144.51,144.46,8.40412286]
[1750719960759,6.84743244,144.51,144.47,6.9165]
[1750719961261,44.54,144.53,144.46,8.40412286]
[1750719961462,3.68510417,144.49,144.44,10.63882286]
[1750719961767,3.68510417,144.49,144.44,2.2347]
[1750719962073,3.68510417,144.49,144.43,34.0301]
[1750719962262,6.9181,144.44,144.43,34.0301]
[1750719962468,3.68510417,144.47,144.43,34.0301]
[1750719962863,6.918,144.45,144.43,34.0301]
[1750719963862,6.9181,144.44,144.43,34.0301]
[1750719964167,6.9181,144.44,144.43,29.44]
[1750719965966,44.54,144.45,144.43,29.44]
[1750719966170,48.22510417,144.45,144.43,29.44]
[1750719966568,6.9181,144.44,144.43,29.44]
[1750719966968,6.9185,144.43,144.42,62.23]
[1750719967166,10.60360417,144.43,144.42,62.23]
[1750719968060,6.9185,144.43,144.42,62.23]
[1750719968265,10.60360417,144.43,144.42,62.23]
[1750719968672,10.60360417,144.43,144.42,51.782]
[1750719969563,6.9195,144.41,144.4,33.47]
[1750719969869,10.60460417,144.41,144.4,33.47]
[1750719970965,6.9195,144.41,144.4,33.47]
[1750719972369,44.54,144.45,144.4,33.47]
[1750719972777,6.9189,144.43,144.4,33.47]
[1750719973067,3.68510417,144.44,144.4,33.47]
[1750719973673,3.68510417,144.42,144.4,33.47]
[1750719974273,6.9195,144.41,144.4,33.47]
[1750719977280,10.60460417,144.41,144.4,33.47]
[1750719978376,55.16460417,144.41,144.4,33.47]